Cogmind - Beta 15 @@@ ROGUE MODE // 2025.05.24 @ 21:54:20 Player: Moddy Result: Self-destructed Performance ------------- Evolutions (2) 1000 Regions Visited (3) 600 Robots Destroyed (8) 40 Value Destroyed (318) 318 Prototype IDs (2) 40 Alien Tech Used (0) 0 Bonus (0) 0 TOTAL SCORE: 1998 Bonus ------- None Cogmind --------- Core Integrity 118/550 Matter 291/300 Energy 100/100 System Corruption 0% Temperature Cool (9) Movement Core (350) Ox6 Location -8/Materials Parts ------- > --- POWER (2) -------- (None) > --- PROPULSION (4) --- (None) > --- UTILITY (3) ------ Large Storage Unit > --- WEAPON (2) ------- (None) > --- INVENTORY (15) --- Light Ion Engine Medium Battery (150) Machine Analyzer Improved Light Armor Plating Hacking Suite Remote Datajack Peak State ------------ > --- POWER ------------ (None) > --- PROPULSION ------- Xenon Bombardment Thruster Xenon Bombardment Thruster Xenon Bombardment Thruster Xenon Bombardment Thruster > --- UTILITY ---------- Small Storage Unit Large Storage Unit Hacking Suite > --- WEAPON ----------- Assault Rifle Heavy Battle Rifle > --- INVENTORY -------- Light Ion Engine Medium Battery Machine Analyzer Improved Light Armor Plating Hacking Suite Assault Rifle Improved Datajack [Rating: 27] Favorites ----------- Power Subdweller Power Source Engine Subdweller Power Source Propulsion Light Treads Treads Light Treads Leg Aluminum Leg Flight Unit Xenon Bombardment Thruster Utility Small Storage Unit Storage Small Storage Unit Hackware Hacking Suite Weapon Heavy Battle Rifle Energy Gun Medium Laser Ballistic Gun Heavy Battle Rifle Build | -11 -10 -10 -8 ------- Run | Yrd Mat Sub Mat Slots Evolved 4 | . . . 4 Power 1 | . . . 1 Propulsion 2 | . . . 2 Utility 1 | . . . 1 Weapon . | . . . . Parts Attached 18 | 5 3 5 5 Power 2 | 1 . 1 . Engine 2 | 1 . 1 . Core . | . . . . Reactor . | . . . . Propulsion 8 | 2 . 2 4 Treads 2 | 2 . . . Leg 2 | . . 2 . Wheel . | . . . . Hover . | . . . . Flight 4 | . . . 4 Utility 4 | . 3 . 1 Device . | . . . . Storage 3 | . 2 . 1 Processor . | . . . . Hackware 1 | . 1 . . Protection . | . . . . Artifact . | . . . . Weapon 4 | 2 . 2 . Energy Gun 1 | 1 . . . Energy Cannon . | . . . . Ballistic Gun 3 | 1 . 2 . Ballistic Cannon . | . . . . Launcher . | . . . . Special Weapon . | . . . . Impact Weapon . | . . . . Slashing Weapon . | . . . . Piercing Weapon . | . . . . Special Melee Weapon . | . . . . Unidentified Prototypes . | . . . . Parts Lost 13 | . . 2 11 Power 1 | . . . 1 Propulsion 6 | . . 1 5 Utility 2 | . . . 2 Weapon 4 | . . 1 3 Highest Loss Streak 8 | . . 2 8 To Critical Strikes . | . . . . Average Backups 5 | 3 5 6 6 Power . | . 1 1 1 Propulsion 1 | 1 2 1 . Utility 2 | . 1 2 3 Weapon 1 | . 1 1 . Tool/Special . | . . . . Unused Backups 6 | . . . 6 Power 1 | . . . 1 Propulsion . | . . . . Utility 3 | . . . 3 Weapon . | . . . . Tool/Special 2 | . . . 2 Average Slot Usage (%) 89 | . 93 99 64 Engine 11 | . 14 14 4 Treads 16 | . 28 20 . Leg 6 | . . 7 9 Flight 2 | . . . 9 Storage 14 | . 12 14 17 Hackware 11 | . 9 14 8 Energy Gun 8 | . 14 9 . Ballistic Gun 16 | . 14 17 15 Peak Build Rating 27 | 5 9 14 27 Average Rating 12 | 3 7 12 15 On Entrance 6 | . 5 9 13 Naked Turns . | . . . . Heaviest Build 36 | 7 14 16 36 Greatest Support 40 | 40 40 40 24 Greatest Overweight (x) 8 | . . . 8 Average Overweight (x) . | . . . 1 Largest Inventory Capacity 15 | 5 8 8 15 Average Capacity 9 | 5 7 8 14 Most Carried 9 | 5 6 8 9 Average Carried 5 | 3 5 6 6 Final Capacity 15 | 5 8 8 15 Final Carried 6 | 5 6 4 6 Class Distribution -------------------- 100% | Mutant Dominant Class ---------------- Mutant | -10/Materials Mutant | -10/Subcaves Mutant | -8/Materials Resources | -11 -10 -10 -8 ----------- Run | Yrd Mat Sub Mat Matter Collected 499 | 248 38 106 107 Remotely . | . . . . Salvage Created 327 | . 26 194 107 Parts 16 | . 2 13 1 Haulers Intercepted . | . . . . Recyclers Shooed . | . . . . Parts Field Recycled . | . . . . Retrieved Matter . | . . . . Parts Self-Destructed 18 | . . 18 . Prevented . | . . . . Kills | -11 -10 -10 -8 ------- Run | Yrd Mat Sub Mat Combat Hostiles Destroyed 7 | . . 5 2 Guns 7 | . . 5 2 Classes Destroyed 4 | . 1 2 1 Watcher 1 | . 1 . . Grunt 2 | . . . 2 Sentry 1 | . . 1 . Subdweller 4 | . . 4 . Best Kill Streak 2 | . 1 2 1 Combat Bots Only 2 | . . 2 1 Max Kills in Single Turn 1 | . 1 1 1 Gunslinging . | . . . . Exploded . | . . . . Melee . | . . . . Uniques/NPCs Destroyed . | . . . . Combat | -11 -10 -10 -8 -------- Run | Yrd Mat Sub Mat Hostile Shots Fired 137 | . 2 48 87 Missed 42 | . . 20 22 Hits 95 | . 2 28 65 Projectile 95 | . 2 28 65 Critical Strikes 2 | . . 1 1 Damage Taken 1774 | . 22 702 1050 Core 525 | . 11 82 432 Absorbed by Shields . | . . . . Core Remaining (%) 81 | 100 . 62 . Volleys Fired 43 | . 2 22 19 Largest 2 | . 2 2 2 Hottest 83 | . 70 83 53 Shots Fired 83 | . 4 42 37 Gun 83 | . 4 42 37 Cannon . | . . . . Launcher . | . . . . Special . | . . . . Kinetic 61 | . 2 22 37 Thermal 22 | . 2 20 . Explosive . | . . . . Electromagnetic . | . . . . Robot Hit Streak 14 | . 1 10 14 Robot Miss Streak 4 | . 1 2 4 Penetration Max . | . . . . Secondary Targets . | . . . . Shots Hit Robots 45 | . 2 20 23 Core Hits 18 | . 1 10 7 Critical Kills . | . . . . Critical Parts Destroyed . | . . . . Critical Strikes 2 | . . 2 . Burn 1 | . . 1 . Destroy 1 | . . 1 . Melee Attacks . | . . . . Impact . | . . . . Slashing . | . . . . Piercing . | . . . . Sneak Attacks . | . . . . Combat Hostiles . | . . . . Follow-up Attacks . | . . . . Damage Inflicted 936 | . 25 527 384 Guns 936 | . 25 527 384 Cannons . | . . . . Explosions . | . . . . Melee . | . . . . Ramming . | . . . . Kinetic 728 | . . 344 384 Thermal 208 | . 25 183 . Explosive . | . . . . Electromagnetic . | . . . . Impact . | . . . . Slashing . | . . . . Piercing . | . . . . Highest Corruption . | . . . . Average Corruption . | . . . . Corruption Purged . | . . . . Corruption Blocked . | . . . . Overload Shots . | . . . . Overflow Damage . | . . . . Projectiles . | . . . . Explosions . | . . . . Melee . | . . . . Knockbacks . | . . . . Impact . | . . . . Kinetic . | . . . . Secondary . | . . . . Self-Inflicted Damage . | . . . . Shots . | . . . . Rammed . | . . . . Targets Rammed . | . . . . Kicked . | . . . . Crushed . | . . . . Highest Temperature 18 | . 18 . 9 Average Temperature 6 | . 10 . 3 Received Heat Transfer 681 | . 12 183 486 Siege Activations . | . . . . Martial Activations . | . . . . Shielding Activations . | . . . . Robots Disrupted . | . . . . Combat Hostiles . | . . . . Robots Corrupted . | . . . . Combat Hostiles . | . . . . Parts Fried . | . . . . Impact Corruptions . | . . . . Robots Melted . | . . . . Combat Hostiles . | . . . . Parts Melted 1 | . . 1 . Heat Transferred 703 | . 74 629 . Parts Sabotaged . | . . . . Parts Stolen . | . . . . Parts Stripped . | . . . . Power Chain Reactions . | . . . . Alert | -11 -10 -10 -8 ------- Run | Yrd Mat Sub Mat Maximum Alert Level . | . . . . Low Security (%) 100 | 100 100 . 100 Level 1 . | . . . . Level 2 . | . . . . Level 3 . | . . . . Level 4 . | . . . . Level 5 . | . . . . High Security . | . . . . Max Security . | . . . . Peak Influence 61 | . 7 . 61 Initial . | . . . . Average 6 | . . . 11 Influence Increases 114 | . 13 20 81 Destroy 0b10 Robot/C 60 | . . 20 40 Destroy 0b10 Robot/NC 5 | . 5 . . Destroy Leader 12 | . 2 . 10 Successful Hack 6 | . 6 . . Destroy Structure 1 | . . . 1 Lose Combat Pursuer 30 | . . . 30 Influence Decreases 114 | . 13 20 81 Time Decay 93 | . 13 20 60 Lost Part 21 | . . . 21 Squads Dispatched 1 | . 1 . . Investigation . | . . . . Extermination . | . . . . Reinforcement 1 | . 1 . . Assault . | . . . . Garrison . | . . . . Intercept . | . . . . Searches Triggered . | . . . . Construction Impeded . | . . . . Haulers Reinforced . | . . . . Active Scanning Responses . | . . . . Cargo Convoy Interrupts . | . . . . Stealth | -11 -10 -10 -8 --------- Run | Yrd Mat Sub Mat Distress Signals 2 | . 2 . . Communications Jammed . | . . . . Distress Signals . | . . . . Times Spotted 15 | . 1 7 7 Peak Tracking Total 5 | . 1 2 5 Tactical Retreats 1 | . . . 1 Traps | -11 -10 -10 -8 ------- Run | Yrd Mat Sub Mat Traps Triggered 2 | . . 2 . Indirectly . | . . . . Trap Hack Attempts . | . . . . Triggered . | . . . . Disarmed . | . . . . Reprogrammed . | . . . . Reused . | . . . . Traps Extracted . | . . . . Installed . | . . . . Triggered . | . . . . Machines | -11 -10 -10 -8 ---------- Run | Yrd Mat Sub Mat Machines Disabled . | . . . . Max in Single Turn . | . . . . Machines Repaired . | . . . . Machines Dismantled . | . . . . Machines Sabotaged . | . . . . Overloaded Fab Kills . | . . . . Hacking | -11 -10 -10 -8 --------- Run | Yrd Mat Sub Mat Machines Accessed 1 | . 1 . . Terminals 1 | . 1 . . Fabricators . | . . . . Repair Stations . | . . . . Recycling Units . | . . . . Scanalyzers . | . . . . Garrison Access . | . . . . Total Hacks 6 | . 6 . . Successful 4 | . 4 . . Failed 2 | . 2 . . Catastrophic . | . . . . Database Lockouts . | . . . . Manual . | . . . . Terminals 6 | . 6 . . Fabricators . | . . . . Repair Stations . | . . . . Recycling Units . | . . . . Scanalyzers . | . . . . Garrison Access . | . . . . Terminal Hacks 4 | . 4 . . Record 1 | . 1 . . Prototype ID Bank 1 | . 1 . . Alert Level 1 | . 1 . . Assault Status 1 | . 1 . . Fabricator Hacks . | . . . . Repair Station Hacks . | . . . . Recycling Unit Hacks . | . . . . Scanalyzer . | . . . . Garrison Access Hacks . | . . . . Unauthorized Hacks . | . . . . Terminals . | . . . . Fabricators . | . . . . Repair Stations . | . . . . Recycling Units . | . . . . Scanalyzers . | . . . . Garrison Access . | . . . . Data Cores Recovered 1 | . 1 . . Used 1 | . 1 . . Hacking Detections . | . . . . Full Trace Events . | . . . . Feedback Events . | . . . . Feedback Blocked . | . . . . Robot Schematics Acquired . | . . . . Robots Built . | . . . . Authchips . | . . . . Time . | . . . . Total Robot Build Rating . | . . . . Part Schematics Acquired . | . . . . Parts Built . | . . . . Authchips . | . . . . Time . | . . . . Total Part Build Rating . | . . . . Parts Repaired . | . . . . Time . | . . . . Parts Recycled . | . . . . Recycled Matter . | . . . . Retrieved Matter . | . . . . Retrieved Components . | . . . . Parts Scanalyzed . | . . . . Part Schematics Acquired . | . . . . Parts Damaged . | . . . . Bothacking | -11 -10 -10 -8 ------------ Run | Yrd Mat Sub Mat Used RIF Installer . | . . . . Robots Hacked . | . . . . Non-combat . | . . . . Combat . | . . . . Robot Hacks Applied . | . . . . Relay Couplers Released . | . . . . Fabnet Peak Effective % . | . . . . Robots Rewired . | . . . . Allies Hacked . | . . . . Hacks Repelled . | . . . . Allies | -11 -10 -10 -8 -------- Run | Yrd Mat Sub Mat Total Allies . | . . . . Largest Group . | . . . . Highest-Rated Group . | . . . . Highest-Rated Ally . | . . . . Total Orders . | . . . . Ally Attacks . | . . . . Total Damage . | . . . . Kills . | . . . . Allies Corrupted . | . . . . Allies Melted . | . . . . Intel | -11 -10 -10 -8 ------- Run | Yrd Mat Sub Mat Active Infowar (turns) . | . . . . Robot Analysis Total . | . . . . Derelict Logs Recovered . | . . . . Drone Launches . | . . . . Drone Recoveries . | . . . . Exploration | -11 -10 -10 -8 ------------- Run | Yrd Mat Sub Mat Turns Passed 1381 | 61 253 728 339 Spaces Moved 779 | 43 151 447 138 Core 23 | 20 . . 3 Treads 453 | 23 151 279 . Legs 249 | . . 168 81 Wheels . | . . . . Hover . | . . . . Flight 54 | . . . 54 Fastest Speed 50 | 50 160 120 111 Average Speed 154 | 108 160 144 193 Slowest Speed 450 | 160 160 160 450 Overloaded Moves . | . . . . Propulsion Burnouts . | . . . . Robots Hopped . | . . . . Potential Cave-ins . | . . . . Cave-ins Triggered . | . . . . Exploration Rate (%) 19 | 5 37 23 11 Regions Visited 3 Branch Regions 1 Pre-discovered Areas . | . . . . Known Exits Taken . | . . . . Unknown Exits Taken 3 | 1 1 1 . Scrap Searched . | . . . . Spaces Dug . | . . . . Terrain Destroyed . | . . . . Melee . | . . . . Projectile . | . . . . AOE . | . . . . Terrain Rammed . | . . . . Walls Destroyed . | . . . . Machines Disabled . | . . . . Actions | -11 -10 -10 -8 --------- Run | Yrd Mat Sub Mat Total 873 | 57 158 484 174 Wait 7 | . . 7 . Move 776 | 42 150 446 138 Hop . | . . . . Pick Up 24 | 10 3 2 9 Fast Attach . | . . . . Attach 16 | 5 2 3 6 Detach . | . . . . Swap 3 | . 1 2 . Drop 4 | . . 2 2 Fire 43 | . 2 22 19 Melee . | . . . . Ram . | . . . . Kick . | . . . . Crush . | . . . . Escape Stasis . | . . . . Rewire . | . . . . Trap . | . . . . Miscellaneous . | . . . . Route ------- -11/Scrapyard -10/Materials (discovered 2 exits: [*Min] / [*Sub]) -10/Subcaves -8/Materials History --------- Turn | Location | Event 11 | -11/Scrapyard | Discovered new exit (range 15) 62 | -11/Scrapyard | Entered Materials 63 | -10/Materials | Met a group of wandering Federalists 164 | -10/Materials | Discovered new exit (range 14) 312 | -10/Materials | Discovered new exit (range 3) 315 | -10/Materials | Build established: Mutant 315 | -10/Materials | Entered Subcaves 316 | -10/Subcaves | Continued accompanying wandering Federalists (2) 355 | -10/Subcaves | Shifting Twisted Machinery released Hvy. Battle Rifle 597 | -10/Subcaves | Shifting Twisted Machinery released Battle Rifle 807 | -10/Subcaves | Discovered new exit (range 5) 1043 | -10/Subcaves | Entered Materials 1043 | -8/Materials | Evolved 4 slots: Power x1, Propulsion x2, Utility x1 1369 | -8/Materials | Core integrity fell below 50% 1382 | -8/Materials | Self-destructed Last Messages --------------- K-01 Serf collects debris. Dropped Imp. Datajack. K-01 Serf collects debris. R-06 Scavenger collects Aluminum Leg. R-06 Scavenger collects Imp. Datajack. Hvy. Battle Rifle destroyed. G-47 Trooper destroyed. Acquired 53 matter. R-06 Scavenger collects Particle Gun. K-01 Serf collects debris. Xenon Bombardment Thruster destroyed. K-01 Serf collects debris. Assault Rifle destroyed. K-01 Serf collects debris. Assault Rifle destroyed. Hacking Suite destroyed. Xenon Bombardment Thruster destroyed. Sml. Storage Unit destroyed. Critical hit (Burn: +37). Xenon Bombardment Thruster destroyed. Map ----- +----------------------------------------------------+ | ?????????????????????????????????????????????????? | | ?????????????????????????????????????????????????? | | ?????????????????????????????????????????????????? | | ?????????????????????????????????????????????????? | | ?????????????????????????????????????????????????? | | ?????????????????????????????????????????????????? | | ?????????????????????????????????????????????????? | | ?????????????????????????????????????????????????? | | ???????????????????????????????###########???????? | | ???????????????????????????????# #???????? | | ???????????????????????????????# // #???????? | | ???????????????????????????????# """ // #???????? | | ???????????????????????????????# """ #???????? | | ??????????????????????#####????# """ #???????? | | ??????????????????????# #????# #???????? | | ??????????????????????# #????# ! #???????? | | ???????????????????#### #????# #???????? | | ??????????????????##! ##########+############? | | ??????????????????#! | | ??????????????????#! #####????? | | ??????????????????# #????????? | | ??????????????????#! ########### #????????? | | ??????????????????##! #?????????# #????????? | | ???????????????????#### #?????????# #????????? | | ??????????????????????# #?????????# +????????? | | ??????????????????????# @#?????????# #????????? | | ??????????????????????# #?????????# #????????? | | ??????????????????????# #?????????# #????????? | | ??????????????????????# ########??## ##????????? | | ??????????????????????# #!! ||#####+######????? | | ??????????????????????# #!! |## #????? | | ??????????????????????#YY # ## #????? | | ????????????????##+#### g# ## !! #????? | | ?????????? k # !! #????? | | ?????????? / ! #????? | | ?????????? # #????? | | ???????????###### ########### # ! #????? | | ????????????????# ??????????# # #????? | | ????????????????# ???????????# ###########????? | | ????????????????# ????????????# #??????????????? | | ????????????????#?????????????# #??????????????? | | ??????????????????????????????# #??????????????? | | ??????????????????????????????# #??????????????? | | ??????????????????????????????# #??????????????? | | ??????????????????????????????# #??????????????? | | ??????????????????????????????# #??????????????? | | ?????????????????????????###### #??????????????? | | ?????????????????? #??????????????? | | ?????????????????? #??????????????? | | ?????????????????? ??????????????? | +----------------------------------------------------+ Best States ------------- Heat Dissipation 31 Energy Generation 15 Energy Capacity 275 Matter Stores 300 Matter Capacity 300 Sight Range 16 Terrain Scan Density 10 Evasion (%) 55 Recoil Reduction 2 Offensive Hacking 10 Item Schematics ----------------- None Robot Schematics ------------------ None Fabricated ------------ Nothing Repaired ---------- Nothing Alien Tech Used ----------------- None Achievements -------------- None Challenges ------------ None Game ------ Seed SiegeAmuletTrap Manual? 0 Play Time 00:10:55 Cumulative 5.2 hours Start 2025.05.24 @ 21:43:50 End 2025.05.24 @ 21:54:20 Sessions 1 Manual Loads 0 Difficulty Rogue Special Mode None Game No. 14 Rogue 14 Adventurer 0 Explorer 0 Win Type - Total 0 Types 0/0/0/0/0/0/0/0/0/0 Lore% 8 Gallery% 14 Achievement% 11 Wizard Run 0 Options --------- Layout 1 ASCII 0 Keyboard 0 Movement Mouse Keybinds 0 Fullscreen 1 Font 32/Tamsyn Map View 25x20 Zoom Use 90% Tactical HUD 0 Map Filters NONE Filters NONE Steam 1 RUN: c0d73584-c1c7-41a4-a8e9-988acbb1d625